Cogmind - Beta 13 @@@ ROGUE MODE // 2024.05.18 @ 14:13:41 Player: AverageDoes Result: Destroyed by S-10 Pest with Light Assault Rifle Performance ------------- Evolutions (2) 1000 Regions Visited (4) 800 Robots Destroyed (15) 75 Value Destroyed (357) 357 Prototype IDs (2) 40 Alien Tech Used (0) 0 Bonus (47) 47 TOTAL SCORE: 2319 Bonus ------- Follower Combat Kills 47 Cogmind --------- Core Integrity 0/550 Matter 290/300 Energy 100/100 System Corruption 0% Temperature Cool (2) Movement Flying (40) Location -8/Materials Parts ------- > --- POWER (1) -------- (None) > --- PROPULSION (5) --- Flight Unit > --- UTILITY (3) ------ Hacking Suite > --- WEAPON (2) ------- (None) > --- INVENTORY (5) ---- Heat Sink Visual Processing Unit Autogun Peak State ------------ > --- POWER ------------ Light Ion Engine > --- PROPULSION ------- Light Treads Light Treads Improved Hover Unit Flight Unit Flight Unit > --- UTILITY ---------- Terrain Scan Processor Seismic Detector Hacking Suite > --- WEAPON ----------- Backup Laser I Autogun > --- INVENTORY -------- Heat Sink Autogun [Rating: 16] Favorites ----------- Power Light Ion Engine Engine Light Ion Engine Propulsion Flight Unit Treads Light Treads Wheel Compact Wheel Hover Unit Improved Hover Unit Flight Unit Flight Unit Utility Terrain Scan Processor Device Seismic Detector Processor Terrain Scan Processor Hackware Hacking Suite Weapon Autogun Energy Gun Backup Laser I Ballistic Gun Autogun Special Melee Weapon Datajack Build | -11 -10 -9 -9 -8 ------- Run | Yrd Mat Mat Min Mat Slots Evolved 4 | . . 2 . 2 Power . | . . . . . Propulsion 3 | . . 2 . 1 Utility 1 | . . . . 1 Weapon . | . . . . . Parts Attached 28 | 5 8 1 2 12 Power 3 | 1 . . 1 1 Engine 3 | 1 . . 1 1 Core . | . . . . . Reactor . | . . . . . Propulsion 13 | 2 2 . . 9 Treads 3 | . . . . 3 Leg . | . . . . . Wheel 2 | 2 . . . . Hover 1 | . . . . 1 Flight 7 | . 2 . . 5 Utility 4 | . 2 1 . 1 Device 2 | . 1 1 . . Storage . | . . . . . Processor 1 | . 1 . . . Hackware 1 | . . . . 1 Protection . | . . . . . Artifact . | . . . . . Weapon 8 | 2 4 . 1 1 Energy Gun 1 | 1 . . . . Energy Cannon . | . . . . . Ballistic Gun 6 | 1 3 . 1 1 Ballistic Cannon . | . . . . . Launcher . | . . . . . Special Weapon . | . . . . . Impact Weapon . | . . . . . Slashing Weapon . | . . . . . Piercing Weapon . | . . . . . Special Melee Weapon 1 | . 1 . . . Unidentified Prototypes . | . . . . . Parts Lost 15 | . 1 2 . 12 Power 2 | . . 1 . 1 Propulsion 8 | . . 1 . 7 Utility 2 | . . . . 2 Weapon 3 | . 1 . . 2 Highest Loss Streak 7 | . 1 2 . 7 To Critical Strikes . | . . . . . Average Slot Usage (%) 63 | . 81 50 44 68 Engine 4 | . 14 3 . 4 Treads 8 | . . . . 14 Wheel 1 | . 14 . . . Hover 1 | . . . . 2 Flight 13 | . 14 14 11 13 Device 9 | . 7 11 11 8 Processor 9 | . 11 11 11 8 Hackware 3 | . . . . 5 Energy Gun 2 | . . . . 3 Ballistic Gun 10 | . 17 11 11 8 Naked Turns . | . . . . . Heaviest Build 9 | 7 9 7 4 8 Greatest Support 60 | 32 32 8 4 60 Greatest Overweight (x) . | . . . . . Average Overweight (x) . | . . . . . Largest Inventory Capacity 5 | 5 5 5 5 5 Average Capacity 5 | 5 5 5 5 5 Most Carried 5 | 5 4 2 4 5 Average Carried 2 | 1 . 1 2 2 Final Capacity 5 | 5 5 5 5 5 Final Carried 3 | . 1 2 3 3 Class Distribution -------------------- 63% | Mutant 36% | Scavenger-Mutant Dominant Class ---------------- Mutant | -10/Materials Mutant | -9/Materials Mutant | -9/Mines Scavenger-Mutant | -8/Materials Resources | -11 -10 -9 -9 -8 ----------- Run | Yrd Mat Mat Min Mat Matter Collected 633 | 145 41 . 166 281 Remotely . | . . . . . Salvage Created 545 | . 84 . 50 411 Parts 35 | . 8 . 4 23 Haulers Intercepted . | . . . . . Recyclers Shooed . | . . . . . Parts Field Recycled . | . . . . . Retrieved Matter . | . . . . . Parts Self-Destructed . | . . . . . Prevented . | . . . . . Kills | -11 -10 -9 -9 -8 ------- Run | Yrd Mat Mat Min Mat Combat Hostiles Destroyed 13 | . 4 . 1 8 Guns 13 | . 4 . 1 8 Classes Destroyed 6 | . 2 . 1 3 Recycler 1 | . . . . 1 Watcher 1 | . . . . 1 Swarmer 7 | . 3 . . 4 Grunt 4 | . 1 . . 3 Brawler 1 | . . . 1 . Sentry 1 | . . . . 1 Best Kill Streak 3 | . 3 . 1 3 Combat Bots Only 3 | . 3 . 1 3 Max Kills in Single Turn 1 | . 1 . 1 1 Gunslinging . | . . . . . Exploded . | . . . . . Melee . | . . . . . Uniques/NPCs Destroyed . | . . . . . Combat | -11 -10 -9 -9 -8 -------- Run | Yrd Mat Mat Min Mat Hostile Shots Fired 232 | . 41 18 1 172 Missed 111 | . 21 11 1 78 Damage Taken 1535 | . 160 105 . 1270 Core 635 | . 54 30 . 551 Absorbed by Shields . | . . . . . Regen/Repaired (Parts) 8 | . . . . 8 Core Remaining (%) 90 | 100 78 . 92 . Volleys Fired 73 | . 9 . 6 58 Largest 2 | . 2 . 1 2 Hottest 53 | . 46 . 23 53 Shots Fired 90 | . 12 . 6 72 Gun 90 | . 12 . 6 72 Cannon . | . . . . . Launcher . | . . . . . Special . | . . . . . Kinetic 61 | . 12 . 6 43 Thermal 29 | . . . . 29 Explosive . | . . . . . Electromagnetic . | . . . . . Robot Hit Streak 7 | . 1 . 2 7 Robot Miss Streak 5 | . 2 . 1 5 Penetration Max . | . . . . . Secondary Targets . | . . . . . Shots Hit Robots 49 | . 4 . 4 41 Core Hits 26 | . 4 . 2 20 Critical Kills . | . . . . . Critical Parts Destroyed . | . . . . . Critical Strikes . | . . . . . Melee Attacks . | . . . . . Impact . | . . . . . Slashing . | . . . . . Piercing . | . . . . . Sneak Attacks . | . . . . . Combat Hostiles . | . . . . . Follow-up Attacks . | . . . . . Damage Inflicted 727 | . 100 . 54 573 Guns 727 | . 100 . 54 573 Cannons . | . . . . . Explosions . | . . . . . Melee . | . . . . . Ramming . | . . . . . Kinetic 592 | . 100 . 54 438 Thermal 135 | . . . . 135 Explosive . | . . . . . Electromagnetic . | . . . . . Impact . | . . . . . Slashing . | . . . . . Piercing . | . . . . . Highest Corruption 1 | . 1 . . . Average Corruption 1 | . 1 . . . Corruption Purged . | . . . . . Corruption Blocked . | . . . . . Overload Shots . | . . . . . Overflow Damage . | . . . . . Projectiles . | . . . . . Explosions . | . . . . . Melee . | . . . . . Knockbacks . | . . . . . Impact . | . . . . . Kinetic . | . . . . . Secondary . | . . . . . Self-Inflicted Damage . | . . . . . Shots . | . . . . . Rammed . | . . . . . Targets Rammed . | . . . . . Kicked . | . . . . . Crushed . | . . . . . Highest Temperature 35 | . 6 3 . 35 Average Temperature 11 | . 3 3 . 12 Received Heat Transfer 513 | . 18 54 . 441 Siege Activations . | . . . . . Robots Corrupted . | . . . . . Combat Hostiles . | . . . . . Parts Fried . | . . . . . Impact Corruptions . | . . . . . Robots Melted . | . . . . . Combat Hostiles . | . . . . . Parts Melted 1 | . . . . 1 Heat Transferred 555 | . . . . 555 Parts Sabotaged . | . . . . . Parts Stolen . | . . . . . Parts Stripped . | . . . . . Power Chain Reactions . | . . . . . Alert | -11 -10 -9 -9 -8 ------- Run | Yrd Mat Mat Min Mat Peak Influence 245 | . 125 77 105 245 Initial 52 | . . 52 30 40 Average 83 | . 73 51 51 110 Maximum Alert Level 1 | . . . . 1 Low Security (%) 90 | 100 100 100 100 82 Level 1 9 | . . . . 17 Level 2 . | . . . . . Level 3 . | . . . . . Level 4 . | . . . . . Level 5 . | . . . . . High Security . | . . . . . Max Security . | . . . . . Squads Dispatched 6 | . 1 . . 5 Investigation 2 | . . . . 2 Extermination . | . . . . . Reinforcement 3 | . 1 . . 2 Assault . | . . . . . Garrison 1 | . . . . 1 Intercept . | . . . . . Searches Triggered . | . . . . . Construction Impeded . | . . . . . Haulers Reinforced . | . . . . . Active Scanning Responses . | . . . . . Cargo Convoy Interrupts . | . . . . . Stealth | -11 -10 -9 -9 -8 --------- Run | Yrd Mat Mat Min Mat Distress Signals . | . . . . . Communications Jammed . | . . . . . Distress Signals . | . . . . . Times Spotted 52 | . 12 3 5 32 Peak Tracking Total 15 | . 7 3 3 15 Tactical Retreats 3 | . 1 . 2 . Traps | -11 -10 -9 -9 -8 ------- Run | Yrd Mat Mat Min Mat Traps Triggered 2 | . 1 . . 1 Indirectly . | . . . . . Trap Hack Attempts . | . . . . . Triggered . | . . . . . Disarmed 4 | . 4 . . . Reprogrammed . | . . . . . Reused . | . . . . . Traps Extracted . | . . . . . Installed . | . . . . . Triggered . | . . . . . Machines | -11 -10 -9 -9 -8 ---------- Run | Yrd Mat Mat Min Mat Machines Disabled . | . . . . . Max in Single Turn . | . . . . . Machines Repaired . | . . . . . Machines Dismantled . | . . . . . Machines Sabotaged . | . . . . . Overloaded Fab Kills . | . . . . . Hacking | -11 -10 -9 -9 -8 --------- Run | Yrd Mat Mat Min Mat Machines Accessed 9 | . 2 1 . 6 Terminals 7 | . 2 . . 5 Fabricators . | . . . . . Repair Stations 1 | . . . . 1 Recycling Units 1 | . . 1 . . Scanalyzers . | . . . . . Garrison Access . | . . . . . Total Hacks 34 | . 6 3 . 25 Successful 19 | . 3 3 . 13 Failed 15 | . 3 . . 12 Catastrophic 1 | . 1 . . . Database Lockouts . | . . . . . Manual . | . . . . . Terminals 27 | . 6 . . 21 Fabricators . | . . . . . Repair Stations 4 | . . . . 4 Recycling Units 3 | . . 3 . . Scanalyzers . | . . . . . Garrison Access . | . . . . . Terminal Hacks 13 | . 3 . . 10 Record 4 | . . . . 4 Prototype ID Bank 1 | . . . . 1 Alert Level 1 | . 1 . . . Unreport Threat 1 | . . . . 1 Disarm Traps 1 | . 1 . . . Transport Status 1 | . . . . 1 Reinforcement Status 1 | . 1 . . . Assault Status 1 | . . . . 1 Recall Investigation 1 | . . . . 1 Hauler Manifests 1 | . . . . 1 Fabricator Hacks . | . . . . . Repair Station Hacks 3 | . . . . 3 Scan Component 1 | . . . . 1 Repair 1 | . . . . 1 Refit 1 | . . . . 1 Recycling Unit Hacks 3 | . . 3 . . Process 1 | . . 1 . . Report Inventory 1 | . . 1 . . Retrieve Matter 1 | . . 1 . . Scanalyzer . | . . . . . Garrison Access Hacks . | . . . . . Unauthorized Hacks . | . . . . . Terminals . | . . . . . Fabricators . | . . . . . Repair Stations . | . . . . . Recycling Units . | . . . . . Scanalyzers . | . . . . . Garrison Access . | . . . . . Data Cores Recovered . | . . . . . Used . | . . . . . Hacking Detections 6 | . 2 . . 4 Full Trace Events 2 | . . . . 2 Feedback Events . | . . . . . Feedback Blocked . | . . . . . Robot Schematics Acquired . | . . . . . Robots Built . | . . . . . Authchips . | . . . . . Time . | . . . . . Total Robot Build Rating . | . . . . . Part Schematics Acquired . | . . . . . Parts Built . | . . . . . Authchips . | . . . . . Time . | . . . . . Total Part Build Rating . | . . . . . Parts Repaired 1 | . . . . 1 Time 26 | . . . . 26 Parts Recycled . | . . . . . Recycled Matter 32 | . . 32 . . Retrieved Matter 32 | . . 32 . . Retrieved Components . | . . . . . Parts Scanalyzed . | . . . . . Part Schematics Acquired . | . . . . . Parts Damaged . | . . . . . Bothacking | -11 -10 -9 -9 -8 ------------ Run | Yrd Mat Mat Min Mat Used RIF Installer . | . . . . . Robots Hacked . | . . . . . Non-combat . | . . . . . Combat . | . . . . . Robot Hacks Applied . | . . . . . Relay Couplers Released . | . . . . . Fabnet Peak Effective % . | . . . . . Robots Rewired . | . . . . . Allies Hacked . | . . . . . Hacks Repelled . | . . . . . Allies | -11 -10 -9 -9 -8 -------- Run | Yrd Mat Mat Min Mat Total Allies 1 | . . . 1 . Largest Group 1 | . . . 1 1 Highest-Rated Group 31 | . . . 31 31 Highest-Rated Ally 31 | . . . 31 31 Total Orders . | . . . . . Ally Attacks 23 | . . . . 23 Total Damage 272 | . . . . 272 Kills 4 | . . . . 4 Allies Corrupted . | . . . . . Allies Melted . | . . . . . Intel | -11 -10 -9 -9 -8 ------- Run | Yrd Mat Mat Min Mat Robot Analysis Total . | . . . . . Derelict Logs Recovered 2 | . . . 2 . Drone Launches . | . . . . . Drone Recoveries . | . . . . . Exploration | -11 -10 -9 -9 -8 ------------- Run | Yrd Mat Mat Min Mat Turns Passed 977 | 43 125 67 222 520 Spaces Moved 1403 | 44 173 163 475 548 Core 26 | 21 . . . 5 Treads 3 | . . . . 3 Legs . | . . . . . Wheels 61 | 23 38 . . . Hover . | . . . . . Flight 1313 | . 135 163 475 540 Fastest Speed 37 | 50 37 37 40 37 Average Speed 51 | 76 50 39 40 63 Slowest Speed 160 | 100 100 40 40 160 Overloaded Moves . | . . . . . Propulsion Burnouts . | . . . . . Robots Hopped 10 | . 1 . 6 3 Cave-ins Triggered . | . . . . . Exploration Rate (%) 35 | 3 37 12 77 50 Regions Visited 4 Branch Regions 1 Pre-discovered Areas 1 | . . . 1 . Known Exits Taken . | . . . . . Unknown Exits Taken 4 | 1 1 1 1 . Scrap Searched 2 | . . . 2 . Spaces Dug . | . . . . . Terrain Destroyed . | . . . . . Melee . | . . . . . Projectile . | . . . . . AOE . | . . . . . Terrain Rammed . | . . . . . Walls Destroyed . | . . . . . Machines Disabled . | . . . . . Actions | -11 -10 -9 -9 -8 --------- Run | Yrd Mat Mat Min Mat Total 1570 | 53 201 164 496 656 Wait 43 | . . . 17 26 Move 1379 | 43 170 162 462 542 Hop 10 | . 1 . 6 3 Pick Up 26 | 5 7 1 1 12 Fast Attach . | . . . . . Attach 27 | 5 8 . 2 12 Detach 5 | . 2 . 2 1 Swap 1 | . . 1 . . Drop 6 | . 4 . . 2 Fire 73 | . 9 . 6 58 Melee . | . . . . . Ram . | . . . . . Kick . | . . . . . Crush . | . . . . . Escape Stasis . | . . . . . Rewire . | . . . . . Trap . | . . . . . Miscellaneous . | . . . . . Route ------- -11/Scrapyard -10/Materials -9/Materials -9/Mines (discovered 2 exits: *Mat / Exi) -8/Materials (discovered 2 exits: [*Fac] / *Sto) History --------- Turn | Location | Event 10 | -11/Scrapyard | Discovered new exit (range 15) 44 | -11/Scrapyard | Entered Materials 162 | -10/Materials | Discovered new exit (range 10) 169 | -10/Materials | Entered another Materials area 169 | -9/Materials | Evolved 2 slots: Propulsion x2 231 | -9/Materials | Discovered new exit (range 6) 236 | -9/Materials | Entered Mines 250 | -9/Mines | Found a hidden stash of uninstalled traps 303 | -9/Mines | Build established: Mutant 345 | -9/Mines | Identified exit to Exiles 388 | -9/Mines | Discovered new exit (range 10) 401 | -9/Mines | Learned 2 Materials zone layouts 422 | -9/Mines | Escorted by a lone wolf Derelict 452 | -9/Mines | Learned location of Storage (-8) 458 | -9/Mines | Entered Materials 458 | -8/Materials | Accompanied by 1 ally 458 | -8/Materials | Evolved 2 slots: Propulsion x1, Utility x1 459 | -8/Materials | Identified exit to Storage 657 | -8/Materials | Discovered new exit (range 7) 729 | -8/Materials | Repaired Flight Unit 846 | -8/Materials | Build established: Scavenger-Mutant 927 | -8/Materials | Lost 4 parts (1p2n1w) 944 | -8/Materials | Garrison activated, responded to threat 953 | -8/Materials | Core integrity fell below 50% 959 | -8/Materials | Core integrity fell below 20% 978 | -8/Materials | Destroyed by S-10 Pest with Light Assault Rifle Last Messages --------------- Acquired 15 matter. K-01 Serf collects debris. Acquired Flight Unit. Flight Unit destroyed. Triggered Explosive Trap. An explosion rips through the floor. Flight Unit destroyed. K-01 Serf collects debris. T-07 Excavator is excavating. O-24 Administrator: "IFF HANDSHAKE FAILED. SECURING TERMINAL." You are entering the active sensor range of a Heavy class robot, which gives away their position but also has a chance to call more squads to reinforce the local area while you are within range. S-10 Pest destroyed. ALERT: Hostiles spotted, dispatching reinforcements to Terminal M012. T-07 Excavator is excavating. Map ----- +----------------------------------------------------+ | ?????????????! [???????????# | | ?##############+############## #########+##### | | ?# ## ## | | ?# ## ## | | ?# ## """ """ ## | | ?# ########### %###+############ """ """ ## | | ?# # # =# ?????????# """ """ ## | | ?# ?# """ """ #%* # #???????# ## | | ?# ?# """ """ " # #???????############### | | ? ??# """ """ # # ]]]#???????????# # | | ??# #% # ]]]#???????????# """ # | | ???###########[ # ]]]#??????????????????????? | | #/?????????????#%[ ########??????????????????????? | | ?????????????## # #???????????????????? | | ??????######## * """ = #???????????????????? | | ???????# """ #???????????????????? | | ???????# # """ #???????????????????? | | ???????# " " #???????????????????? | | ???????# # "G" ????????????????????? | | ???????# ??# # """ ##??????????????????? | | ???????# ????# # # ###???????????????? | | ???????# ?? # #?######### #???????????????? | | ???????????? a/ g############ ################# | | ???????????????# w %* | | ???????????????# ss [ | | ???????????????+ @ | | ???????????????##+################################ | | ?????????????????????????????????????????????????? | | ?????????????????????????????????????????????????? | | ?????????????????????????????????????????????????? | | ?????????????????????????????????????????????????? | | ?????????????????????????????????????????????????? | | ?????????????????????????????????????????????????? | | ?????????????????????????????????????????????????? | | ?????????????????????????????????????????????????? | | ?????????????????????????????????????????????????? | | | | | | | | | | | | | | | | | | | | | | | | | | | | | +----------------------------------------------------+ Best States ------------- Heat Dissipation 38 Energy Generation 10 Energy Capacity 125 Matter Stores 300 Matter Capacity 300 Sight Range 16 Terrain Scan Density 85 Evasion (%) 62 Recoil Reduction 1 Offensive Hacking 10 Item Schematics ----------------- None Robot Schematics ------------------ None Fabricated ------------ Nothing Alien Tech Used ----------------- None Achievements -------------- None Challenges ------------ None Game ------ Seed MetafieldArmoredSubcomponent Manual? 0 Play Time 00:30:02 Cumulative 2.4 hours Start 2024.05.18 @ 13:29:20 End 2024.05.18 @ 14:13:41 Sessions 1 Manual Loads 0 Difficulty Rogue Special Mode None Game No. 5 Rogue 5 Adventurer 0 Explorer 0 Win Type - Total 0 Types 0/0/0/0/0/0/0/0/0 Lore% 3 Gallery% 6 Achievement% 8 Wizard Run 0 Options --------- Layout 1 ASCII 0 Keyboard 0 Movement Mouse Keybinds 0 Fullscreen 1 Font 32/SmallcapsGlow Map View 50x35 Zoom Use 0% Tactical HUD 0 Map Filters NONE Filters NONE Steam 1 RUN: a7d774c0-6e31-4557-9331-98a91c5fd82d